Workbook

Sheet TEST
A1: I | E1: =SUMPRODUCT((E5:E370="O")+(E5:E370="U")) -> 3 | F1: =SUMPRODUCT((F5:F370="O")+(F5:F370="U")) -> 3 | G1: 5 | H1: 3 | I1: 3 | J1: 4 | K1: 5 | L1: 2 | M1: 2 | N1: 3 | O1: 3 | P1: 3 | Q1: 4 | R1: 3 | S1: 4 | T1: 4 | U1: 3 | V1: 6 | W1: 6 | X1: 3 | Y1: 3 | Z1: 3 | AA1: 3 | AB1: 4 | AC1: 5 | AD1: 5 | AE1: 2 | AF1: 2 | AG1: 3 | AH1: 3 | AI1: 5 | AJ1: 5 | AK1: 5 | AL1: 3 | AM1: 3
A2: L | E2: AA | N2: BB | Q2: CC | Z2: DD | AA2: EE | AB2: FF | AE2: GG | AF2: HH | AI2: II | AL2: JJ | AM2: KK
A3: Affectation | B3: Lieu de travail | C3: Poste principal | D3: Prénom Nom - % temps affecté | E3: PERIMETRE 1 | F3: PERIMETRE 2 | G3: PERIMETRE 3 | H3: PERIMETRE 4 | I3: PERIMETRE 5 | J3: PERIMETRE 6 | K3: PERIMETRE 7 | L3: PERIMETRE 8 | M3: PERIMETRE 9 | N3: PERIMETRE 10 | O3: PERIMETRE 11 | P3: PERIMETRE 12 | Q3: PERIMETRE 13 | R3: PERIMETRE 14 | S3: PERIMETRE 15 | T3: PERIMETRE 16 | U3: PERIMETRE 17 | V3: PERIMETRE 18 | W3: PERIMETRE 19 | X3: PERIMETRE 20 | Y3: PERIMETRE 21 | Z3: PERIMETRE 22 | AA3: PERIMETRE 23 | AB3: PERIMETRE 24 | AC3: PERIMETRE 25 | AD3: PERIMETRE 26 | AE3: PERIMETRE 27 | AF3: PERIMETRE 28 | AG3: PERIMETRE 29 | AH3: PERIMETRE 30 | AI3: PERIMETRE 31 | AJ3: PERIMETRE 32 | AK3: PERIMETRE 33 | AL3: PERIMETRE 34 | AM3: PERIMETRE 35
E4: 0.05 | F4: 0.15 | G4: 0.6 | H4: 0.1 | I4: 0.65 | J4: 0.3 | K4: 0.5 | L4: 1 | M4: 1 | N4: 0.75 | O4: 0.15 | P4: 0.15 | Q4: 0.4 | R4: 0.45 | S4: 0.45 | T4: 0.45 | U4: 0.05 | V4: 0.75 | W4: 0.75 | X4: 0.05 | Y4: 0.05 | Z4: 0.7 | AA4: 0.4 | AB4: 0.5 | AC4: 0.5 | AD4: 0.4 | AE4: 0.9 | AF4: 1 | AG4: 1 | AH4: 1 | AI4: 1 | AJ4: 1 | AK4: 0.2 | AL4: 1 | AM4: 1
A5: =IF(ISNA(VLOOKUP(LEFT(D5,SEARCH("-",D5)-2),PERSONNEL,2,0)),"-",VLOOKUP(LEFT(D5,SEARCH("-",D5)-2),PERSONNEL,2,0)) -> 4-Service | B5: =IF(ISNA(VLOOKUP(LEFT(D5,SEARCH("-",D5)-2),PERSONNEL,3,0)),"-",VLOOKUP(LEFT(D5,SEARCH("-",D5)-2),PERSONNEL,3,0)) -> Marseille | C5: =IF(ISNA(VLOOKUP(LEFT(D5,SEARCH("-",D5)-2),PERSONNEL,4,0)),"-",VLOOKUP(LEFT(D5,SEARCH("-",D5)-2),PERSONNEL,4,0)) -> AB | D5: =BASE!$A$5&" - "&(SUM(E6:BA6)*100)&"%" -> AAA - 35% | E5: I | F5: I | G5: I | H5: I | I5: I | J5: I | K5: I | L5: I | M5: I | N5: I | O5: I | P5: I | Q5: I | R5: I | S5: I | T5: I | U5: I | V5: I | W5: I | X5: I | Y5: I | Z5: I | AA5: I | AB5: U | AC5: U | AD5: U | AE5: I | AF5: I | AG5: I | AH5: I | AI5: I | AJ5: I | AK5: I | AL5: I | AM5: I
A6: 4-Service | B6: Marseille | C6: AB | D6: =D5 -> AAA - 35% | AB6: 0.35
A7: 4-Service | B7: Marseille | C7: AC | D7: =BASE!$A$6&" - "&(SUM(E8:BA8)*100)&"%" -> BBB - 0% | E7: O | F7: O | G7: O | H7: O | I7: O | J7: O | K7: O | L7: I | M7: I | N7: I | O7: I | P7: I | Q7: O | R7: I | S7: O | T7: O | U7: O | V7: O | W7: O | X7: O | Y7: O | Z7: O | AA7: O | AB7: O | AC7: O | AD7: O | AE7: O | AF7: O | AG7: O | AH7: O | AI7: I | AJ7: I | AK7: I | AL7: I | AM7: I
A8: 4-Service | B8: Marseille | C8: AC | D8: =D7 -> BBB - 0%
A9: 4-Service | B9: Marseille | C9: AD | D9: =BASE!$A$7&" - "&(SUM(E10:BA10)*100)&"%" -> CCC - 80% | E9: I | F9: I | G9: I | H9: I | I9: I | J9: I | K9: U | L9: I | M9: I | N9: I | O9: I | P9: I | Q9: I | R9: I | S9: I | T9: I | U9: I | V9: I | W9: I | X9: I | Y9: I | Z9: I | AA9: I | AB9: I | AC9: I | AD9: I | AE9: I | AF9: I | AG9: I | AH9: I | AI9: U | AJ9: U | AK9: U | AL9: I | AM9: I
A10: 4-Service | B10: Marseille | C10: AD | D10: =D9 -> CCC - 80% | E10: 0.05 | F10: 0.15 | K10: 0.4 | AK10: 0.2
A11: 4-Service | B11: Marseille | C11: AB | D11: =BASE!$A$8&" - "&(SUM(E12:BA12)*100)&"%" -> DDD - 100% | E11: I | F11: I | G11: I | H11: I | I11: I | J11: I | K11: I | L11: I | M11: I | N11: I | O11: I | P11: I | Q11: I | R11: I | S11: I | T11: I | U11: I | V11: I | W11: I | X11: I | Y11: I | Z11: U | AA11: U | AB11: U | AC11: U | AD11: U | AE11: I | AF11: I | AG11: I | AH11: I | AI11: I | AJ11: I | AK11: I | AL11: I | AM11: I
A12: 4-Service | B12: Marseille | C12: AB | D12: =D11 -> DDD - 100% | Z12: 0.6 | AA12: 0.4
A13: 4-Service | B13: Paris | C13: AC | D13: =BASE!$A$9&" - "&(SUM(E14:BA14)*100)&"%" -> EEE - 100% | E13: I | F13: I | G13: I | H13: I | I13: I | J13: I | K13: I | L13: I | M13: I | N13: I | O13: I | P13: I | Q13: I | R13: I | S13: I | T13: I | U13: I | V13: I | W13: I | X13: I | Y13: I | Z13: I | AA13: I | AB13: O | AC13: O | AD13: O | AE13: I | AF13: O | AG13: I | AH13: I | AI13: I | AJ13: I | AK13: I | AL13: I | AM13: I
A14: 4-Service | B14: Paris | C14: AC | D14: =D13 -> EEE - 100% | AD14: 0.5 | AF14: 0.5
A15: 4-Service | B15: Marseille | C15: AD | D15: =BASE!$A$10&" - "&(SUM(E16:BA16)*100)&"%" -> FFF - 170% | E15: U | F15: U | G15: U | H15: U | I15: U | J15: U | K15: I | L15: I | M15: I | N15: I | O15: I | P15: I | Q15: I | R15: I | S15: I | T15: I | U15: I | V15: I | W15: I | X15: I | Y15: I | Z15: I | AA15: I | AB15: I | AC15: I | AD15: I | AE15: I | AF15: I | AG15: I | AH15: I | AI15: I | AJ15: I | AK15: I | AL15: I | AM15: I
A16: 4-Service | B16: Marseille | C16: AD | D16: =D15 -> FFF - 170% | G16: 0.6 | H16: 0.15 | I16: 0.65 | J16: 0.3
A17: 4-Service | B17: Marseille | C17: AB | D17: =BASE!$A$11&" - "&(SUM(E18:BA18)*100)&"%" -> GGG - 95% | E17: I | F17: I | G17: U | H17: I | I17: I | J17: I | K17: I | L17: I | M17: I | N17: I | O17: I | P17: I | Q17: U | R17: U | S17: U | T17: U | U17: I | V17: I | W17: I | X17: U | Y17: I | Z17: I | AA17: I | AB17: I | AC17: I | AD17: I | AE17: I | AF17: I | AG17: I | AH17: I | AI17: I | AJ17: I | AK17: I | AL17: I | AM17: I
A18: 4-Service | B18: Marseille | C18: AB | D18: =D17 -> GGG - 95% | G18: 0.05 | Q18: 0.4 | T18: 0.45 | X18: 0.05
A19: 4-Service | B19: Marseille | C19: AC | D19: =BASE!$A$12&" - "&(SUM(E20:BA20)*100)&"%" -> HHH - 0% | E19: I | F19: I | G19: I | H19: I | I19: I | J19: I | K19: I | L19: I | M19: I | N19: I | O19: I | P19: I | Q19: I | R19: I | S19: I | T19: I | U19: I | V19: I | W19: I | X19: I | Y19: I | Z19: I | AA19: I | AB19: I | AC19: I | AD19: I | AE19: I | AF19: I | AG19: I | AH19: I | AI19: I | AJ19: I | AK19: I | AL19: I | AM19: I
A20: 4-Service | B20: Marseille | C20: AC | D20: =D19 -> HHH - 0%
A21: 4-Service | B21: Paris | C21: AD | D21: =BASE!$A$13&" - "&(SUM(E22:BA22)*100)&"%" -> III - 0% | E21: O | F21: O | G21: I | H21: I | I21: I | J21: O | K21: O | L21: I | M21: I | N21: O | O21: I | P21: I | Q21: I | R21: I | S21: I | T21: I | U21: I | V21: I | W21: I | X21: I | Y21: I | Z21: I | AA21: I | AB21: I | AC21: I | AD21: I | AE21: I | AF21: I | AG21: I | AH21: I | AI21: O | AJ21: O | AK21: O | AL21: I | AM21: I
A22: 4-Service | B22: Paris | C22: AD | D22: =D21 -> III - 0%
A23: 4-Service | B23: Marseille | C23: AB | D23: =BASE!$A$14&" - "&(SUM(E24:BA24)*100)&"%" -> JJJ - 100% | E23: I | F23: I | G23: I | H23: I | I23: I | J23: I | K23: I | L23: U | M23: U | N23: I | O23: I | P23: I | Q23: I | R23: I | S23: I | T23: I | U23: I | V23: I | W23: I | X23: I | Y23: I | Z23: I | AA23: I | AB23: I | AC23: I | AD23: I | AE23: I | AF23: I | AG23: I | AH23: I | AI23: I | AJ23: I | AK23: I | AL23: I | AM23: I
A24: 4-Service | B24: Marseille | C24: AB | D24: =D23 -> JJJ - 100% | L24: 1
A25: 4-Service | B25: Paris | C25: AC | D25: =BASE!$A$15&" - "&(SUM(E26:BA26)*100)&"%" -> KKK - 100% | E25: I | F25: I | G25: I | H25: I | I25: I | J25: I | K25: I | L25: I | M25: I | N25: I | O25: I | P25: I | Q25: I | R25: I | S25: I | T25: I | U25: I | V25: I | W25: I | X25: I | Y25: I | Z25: I | AA25: I | AB25: I | AC25: I | AD25: I | AE25: I | AF25: I | AG25: I | AH25: I | AI25: U | AJ25: O | AK25: U | AL25: I | AM25: I
A26: 4-Service | B26: Paris | C26: AC | D26: =D25 -> KKK - 100% | AJ26: 1
A27: 4-Service | B27: Marseille | C27: AD | D27: =BASE!$A$16&" - "&(SUM(E28:BA28)*100)&"%" -> LLL - 50% | E27: I | F27: I | G27: I | H27: I | I27: I | J27: I | K27: I | L27: U | M27: U | N27: I | O27: I | P27: I | Q27: I | R27: I | S27: I | T27: I | U27: I | V27: I | W27: I | X27: I | Y27: U | Z27: I | AA27: I | AB27: I | AC27: I | AD27: I | AE27: I | AF27: I | AG27: I | AH27: I | AI27: I | AJ27: I | AK27: I | AL27: I | AM27: I
A28: 4-Service | B28: Marseille | C28: AD | D28: =D27 -> LLL - 50% | M28: 0.4 | Y28: 0.1
A29: 4-Service | B29: Marseille | C29: AB | D29: =BASE!$A$17&" - "&(SUM(E30:BA30)*100)&"%" -> MMM - 0% | E29: I | F29: I | G29: I | H29: I | I29: I | J29: I | K29: I | L29: I | M29: I | N29: I | O29: U | P29: U | Q29: I | R29: I | S29: I | T29: I | U29: I | V29: U | W29: U | X29: I | Y29: I | Z29: I | AA29: I | AB29: I | AC29: I | AD29: I | AE29: I | AF29: I | AG29: I | AH29: I | AI29: O | AJ29: O | AK29: O | AL29: O | AM29: O
A30: 4-Service | B30: Marseille | C30: AB | D30: =D29 -> MMM - 0%
A31: 4-Service | B31: Marseille | C31: AC | D31: =BASE!$A$18&" - "&(SUM(E32:BA32)*100)&"%" -> NNN - 100% | E31: I | F31: I | G31: I | H31: I | I31: I | J31: I | K31: I | L31: I | M31: I | N31: I | O31: I | P31: I | Q31: I | R31: I | S31: I | T31: I | U31: I | V31: I | W31: I | X31: I | Y31: I | Z31: I | AA31: I | AB31: I | AC31: I | AD31: I | AE31: I | AF31: I | AG31: U | AH31: U | AI31: I | AJ31: I | AK31: I | AL31: I | AM31: I
A32: 4-Service | B32: Marseille | C32: AC | D32: =D31 -> NNN - 100% | AG32: 1
A33: 4-Service | B33: Marseille | C33: AD | D33: =BASE!$A$19&" - "&(SUM(E34:BA34)*100)&"%" -> OOO - 100% | E33: I | F33: I | G33: I | H33: I | I33: I | J33: I | K33: I | L33: I | M33: I | N33: I | O33: I | P33: I | Q33: I | R33: I | S33: I | T33: I | U33: I | V33: I | W33: I | X33: I | Y33: I | Z33: I | AA33: I | AB33: I | AC33: I | AD33: I | AE33: I | AF33: I | AG33: I | AH33: I | AI33: O | AJ33: U | AK33: U | AL33: I | AM33: I
A34: 4-Service | B34: Marseille | C34: AD | D34: =D33 -> OOO - 100% | AI34: 1
A35: 4-Service | B35: Paris | C35: AB | D35: =BASE!$A$20&" - "&(SUM(E36:BA36)*100)&"%" -> PPP - 100% | E35: I | F35: I | G35: I | H35: I | I35: I | J35: I | K35: I | L35: I | M35: I | N35: I | O35: I | P35: I | Q35: I | R35: I | S35: I | T35: I | U35: I | V35: U | W35: U | X35: I | Y35: I | Z35: I | AA35: I | AB35: I | AC35: I | AD35: I | AE35: I | AF35: I | AG35: I | AH35: I | AI35: I | AJ35: I | AK35: I | AL35: I | AM35: I
A36: 4-Service | B36: Paris | C36: AB | D36: =D35 -> PPP - 100% | V36: 1
A37: =IF(ISNA(VLOOKUP(LEFT(D37,SEARCH("-",D37)-2),PERSONNEL,2,0)),"-",VLOOKUP(LEFT(D37,SEARCH("-",D37)-2),PERSONNEL,2,0)) -> 4-Service | B37: =IF(ISNA(VLOOKUP(LEFT(D37,SEARCH("-",D37)-2),PERSONNEL,3,0)),"-",VLOOKUP(LEFT(D37,SEARCH("-",D37)-2),PERSONNEL,3,0)) -> Marseille | C37: =IF(ISNA(VLOOKUP(LEFT(D37,SEARCH("-",D37)-2),PERSONNEL,4,0)),"-",VLOOKUP(LEFT(D37,SEARCH("-",D37)-2),PERSONNEL,4,0)) -> AC | D37: =BASE!$A$21&" - "&(SUM(E38:BA38)*100)&"%" -> QQQ - 60% | E37: I | F37: I | G37: I | H37: I | I37: I | J37: I | K37: I | L37: I | M37: I | N37: I | O37: I | P37: I | Q37: I | R37: I | S37: I | T37: I | U37: I | V37: I | W37: I | X37: I | Y37: I | Z37: I | AA37: I | AB37: I | AC37: I | AD37: I | AE37: I | AF37: I | AG37: I | AH37: I | AI37: I | AJ37: I | AK37: I | AL37: U | AM37: U
A38: 4-Service | B38: Marseille | C38: AC | D38: =D37 -> QQQ - 60% | AL38: 0.6
A39: 4-Service | B39: Paris | C39: AD | D39: =BASE!$A$22&" - "&(SUM(E40:BA40)*100)&"%" -> RRR - 90% | E39: I | F39: I | G39: I | H39: I | I39: I | J39: I | K39: I | L39: I | M39: I | N39: I | O39: I | P39: I | Q39: U | R39: U | S39: U | T39: U | U39: U | V39: I | W39: I | X39: I | Y39: I | Z39: U | AA39: U | AB39: I | AC39: I | AD39: I | AE39: I | AF39: I | AG39: I | AH39: I | AI39: I | AJ39: I | AK39: I | AL39: I | AM39: I
A40: 4-Service | B40: Paris | C40: AD | D40: =D39 -> RRR - 90% | R40: 0.45 | S40: 0.45
A41: 4-Service | B41: Marseille | C41: AB | D41: =BASE!$A$23&" - "&(SUM(E42:BA42)*100)&"%" -> SSS - 75% | E41: I | F41: I | G41: I | H41: I | I41: I | J41: I | K41: I | L41: I | M41: I | N41: I | O41: I | P41: I | Q41: I | R41: I | S41: I | T41: I | U41: U | V41: I | W41: I | X41: I | Y41: I | Z41: I | AA41: I | AB41: I | AC41: U | AD41: U | AE41: U | AF41: I | AG41: I | AH41: I | AI41: I | AJ41: I | AK41: I | AL41: I | AM41: I
A42: 4-Service | B42: Marseille | C42: AB | D42: =D41 -> SSS - 75% | U42: 0.05 | AC42: 0.5 | AE42: 0.2
A43: 4-Service | B43: Marseille | C43: AC | D43: =BASE!$A$24&" - "&(SUM(E44:BA44)*100)&"%" -> TTT - 0% | E43: I | F43: I | G43: I | H43: I | I43: U | J43: I | K43: I | L43: I | M43: I | N43: I | O43: I | P43: I | Q43: I | R43: I | S43: I | T43: I | U43: I | V43: I | W43: I | X43: I | Y43: I | Z43: I | AA43: I | AB43: I | AC43: I | AD43: I | AE43: I | AF43: I | AG43: I | AH43: I | AI43: I | AJ43: I | AK43: I | AL43: I | AM43: I
A44: 4-Service | B44: Marseille | C44: AC | D44: =D43 -> TTT - 0%
A45: 4-Service | B45: Marseille | C45: AD | D45: =BASE!$A$25&" - "&(SUM(E46:BA46)*100)&"%" -> UUU - 100% | E45: I | F45: I | G45: I | H45: I | I45: I | J45: I | K45: I | L45: I | M45: I | N45: I | O45: I | P45: I | Q45: I | R45: I | S45: I | T45: I | U45: I | V45: U | W45: U | X45: I | Y45: I | Z45: I | AA45: I | AB45: I | AC45: I | AD45: I | AE45: I | AF45: I | AG45: I | AH45: I | AI45: I | AJ45: I | AK45: I | AL45: I | AM45: I
A46: 4-Service | B46: Marseille | C46: AD | D46: =D45 -> UUU - 100% | W46: 1
A47: 4-Service | B47: Paris | C47: AB | D47: =BASE!$A$26&" - "&(SUM(E48:BA48)*100)&"%" -> VVV - 100% | E47: I | F47: I | G47: I | H47: I | I47: I | J47: I | K47: I | L47: I | M47: I | N47: I | O47: I | P47: I | Q47: I | R47: I | S47: I | T47: I | U47: I | V47: I | W47: I | X47: I | Y47: I | Z47: I | AA47: I | AB47: I | AC47: I | AD47: I | AE47: I | AF47: I | AG47: U | AH47: U | AI47: I | AJ47: I | AK47: I | AL47: I | AM47: I
A48: 4-Service | B48: Paris | C48: AB | D48: =D47 -> VVV - 100% | AH48: 1
A49: 4-Service | B49: Marseille | C49: AC | D49: =BASE!$A$27&" - "&(SUM(E50:BA50)*100)&"%" -> WWW - 0% | E49: I | F49: I | G49: O | H49: I | I49: I | J49: O | K49: O | L49: I | M49: I | N49: O | O49: O | P49: O | Q49: I | R49: I | S49: I | T49: I | U49: I | V49: O | W49: O | X49: I | Y49: I | Z49: I | AA49: I | AB49: I | AC49: I | AD49: I | AE49: I | AF49: I | AG49: I | AH49: I | AI49: I | AJ49: I | AK49: I | AL49: I | AM49: I
A50: 4-Service | B50: Marseille | C50: AC | D50: =D49 -> WWW - 0%
A51: 4-Service | B51: Marseille | C51: AD | D51: =BASE!$A$28&" - "&(SUM(E52:BA52)*100)&"%" -> XXX - 80% | E51: I | F51: I | G51: I | H51: I | I51: I | J51: I | K51: I | L51: I | M51: I | N51: U | O51: U | P51: U | Q51: I | R51: I | S51: I | T51: I | U51: I | V51: I | W51: I | X51: I | Y51: I | Z51: I | AA51: I | AB51: I | AC51: I | AD51: I | AE51: I | AF51: I | AG51: I | AH51: I | AI51: I | AJ51: I | AK51: I | AL51: I | AM51: I
A52: 4-Service | B52: Marseille | C52: AD | D52: =D51 -> XXX - 80% | N52: 0.5 | O52: 0.15 | P52: 0.15
A53: 4-Service | B53: Marseille | C53: AB | D53: =BASE!$A$29&" - "&(SUM(E54:BA54)*100)&"%" -> YYY - 0% | E53: I | F53: I | G53: O | H53: O | I53: I | J53: I | K53: O | L53: I | M53: I | N53: I | O53: I | P53: I | Q53: U | R53: U | S53: O | T53: O | U53: I | V53: O | W53: O | X53: O | Y53: O | Z53: I | AA53: I | AB53: I | AC53: I | AD53: I | AE53: I | AF53: I | AG53: I | AH53: I | AI53: I | AJ53: I | AK53: I | AL53: I | AM53: I
A54: 4-Service | B54: Marseille | C54: AB | D54: =D53 -> YYY - 0%
A55: 4-Service | B55: Marseille | C55: AC | D55: =BASE!$A$30&" - "&(SUM(E56:BA56)*100)&"%" -> ZZZ - 100% | E55: I | F55: I | G55: I | H55: I | I55: I | J55: I | K55: I | L55: I | M55: I | N55: I | O55: I | P55: I | Q55: I | R55: I | S55: I | T55: I | U55: I | V55: I | W55: I | X55: I | Y55: I | Z55: I | AA55: I | AB55: I | AC55: I | AD55: I | AE55: I | AF55: I | AG55: I | AH55: I | AI55: I | AJ55: I | AK55: I | AL55: U | AM55: U
A56: 4-Service | B56: Marseille | C56: AC | D56: =D55 -> ZZZ - 100% | AM56: 1
A57: - | B57: - | C57: - | D57: =BASE!$A$31&" - "&(SUM(E58:BA58)*100)&"%" -> - 0% | E57: I | F57: I | G57: I | H57: I | I57: I | J57: I | K57: I | L57: I | M57: I | N57: I | O57: I | P57: I | Q57: I | R57: I | S57: I | T57: I | U57: I | V57: I | W57: I | X57: I | Y57: I | Z57: I | AA57: I | AB57: I | AC57: I | AD57: I | AE57: I | AF57: I | AG57: I | AH57: I | AI57: I | AJ57: I | AK57: I | AL57: I | AM57: I
A58: - | B58: - | C58: - | D58: =D57 -> - 0%
A59: - | B59: - | C59: - | D59: =BASE!$A$32&" - "&(SUM(E60:BA60)*100)&"%" -> - 0% | E59: I | F59: I | G59: I | H59: I | I59: I | J59: I | K59: I | L59: I | M59: I | N59: I | O59: I | P59: I | Q59: I | R59: I | S59: I | T59: I | U59: I | V59: I | W59: I | X59: I | Y59: I | Z59: I | AA59: I | AB59: I | AC59: I | AD59: I | AE59: I | AF59: I | AG59: I | AH59: I | AI59: I | AJ59: I | AK59: I | AL59: I | AM59: I
A60: - | B60: - | C60: - | D60: =D59 -> - 0%
A61: - | B61: - | C61: - | D61: =BASE!$A$33&" - "&(SUM(E62:BA62)*100)&"%" -> - 0% | E61: I | F61: I | G61: I | H61: I | I61: I | J61: I | K61: I | L61: I | M61: I | N61: I | O61: I | P61: I | Q61: I | R61: I | S61: I | T61: I | U61: I | V61: I | W61: I | X61: I | Y61: I | Z61: I | AA61: I | AB61: I | AC61: I | AD61: I | AE61: I | AF61: I | AG61: I | AH61: I | AI61: I | AJ61: I | AK61: I | AL61: I | AM61: I
A62: - | B62: - | C62: - | D62: =D61 -> - 0%
A63: - | B63: - | C63: - | D63: =BASE!$A$34&" - "&(SUM(E64:BA64)*100)&"%" -> - 0% | E63: I | F63: I | G63: I | H63: I | I63: I | J63: I | K63: I | L63: I | M63: I | N63: I | O63: I | P63: I | Q63: I | R63: I | S63: I | T63: I | U63: I | V63: I | W63: I | X63: I | Y63: I | Z63: I | AA63: I | AB63: I | AC63: I | AD63: I | AE63: I | AF63: I | AG63: I | AH63: I | AI63: I | AJ63: I | AK63: I | AL63: I | AM63: I
A64: - | B64: - | C64: - | D64: =D63 -> - 0%
A65: - | B65: - | C65: - | D65: =BASE!$A$35&" - "&(SUM(E66:BA66)*100)&"%" -> - 0% | E65: I | F65: I | G65: I | H65: I | I65: I | J65: I | K65: I | L65: I | M65: I | N65: I | O65: I | P65: I | Q65: I | R65: I | S65: I | T65: I | U65: I | V65: I | W65: I | X65: I | Y65: I | Z65: I | AA65: I | AB65: I | AC65: I | AD65: I | AE65: I | AF65: I | AG65: I | AH65: I | AI65: I | AJ65: I | AK65: I | AL65: I | AM65: I
A66: - | B66: - | C66: - | D66: =D65 -> - 0%
A67: - | B67: - | C67: - | D67: =BASE!$A$36&" - "&(SUM(E68:BA68)*100)&"%" -> - 0% | E67: I | F67: I | G67: I | H67: I | I67: I | J67: I | K67: I | L67: I | M67: I | N67: I | O67: I | P67: I | Q67: I | R67: I | S67: I | T67: I | U67: I | V67: I | W67: I | X67: I | Y67: I | Z67: I | AA67: I | AB67: I | AC67: I | AD67: I | AE67: I | AF67: I | AG67: I | AH67: I | AI67: I | AJ67: I | AK67: I | AL67: I | AM67: I
A68: - | B68: - | C68: - | D68: =D67 -> - 0%
A69: =IF(ISNA(VLOOKUP(LEFT(D69,SEARCH("-",D69)-2),PERSONNEL,2,0)),"-",VLOOKUP(LEFT(D69,SEARCH("-",D69)-2),PERSONNEL,2,0)) -> - | B69: =IF(ISNA(VLOOKUP(LEFT(D69,SEARCH("-",D69)-2),PERSONNEL,3,0)),"-",VLOOKUP(LEFT(D69,SEARCH("-",D69)-2),PERSONNEL,3,0)) -> - | C69: =IF(ISNA(VLOOKUP(LEFT(D69,SEARCH("-",D69)-2),PERSONNEL,4,0)),"-",VLOOKUP(LEFT(D69,SEARCH("-",D69)-2),PERSONNEL,4,0)) -> - | D69: =BASE!$A$37&" - "&(SUM(E70:BA70)*100)&"%" -> - 0% | E69: I | F69: I | G69: I | H69: I | I69: I | J69: I | K69: I | L69: I | M69: I | N69: I | O69: I | P69: I | Q69: I | R69: I | S69: I | T69: I | U69: I | V69: I | W69: I | X69: I | Y69: I | Z69: I | AA69: I | AB69: I | AC69: I | AD69: I | AE69: I | AF69: I | AG69: I | AH69: I | AI69: I | AJ69: I | AK69: I | AL69: I | AM69: I
A70: - | B70: - | C70: - | D70: =D69 -> - 0%
A71: - | B71: - | C71: - | D71: =BASE!$A$38&" - "&(SUM(E72:BA72)*100)&"%" -> - 0% | E71: I | F71: I | G71: I | H71: I | I71: I | J71: I | K71: I | L71: I | M71: I | N71: I | O71: I | P71: I | Q71: I | R71: I | S71: I | T71: I | U71: I | V71: I | W71: I | X71: I | Y71: I | Z71: I | AA71: I | AB71: I | AC71: I | AD71: I | AE71: I | AF71: I | AG71: I | AH71: I | AI71: I | AJ71: I | AK71: I | AL71: I | AM71: I
A72: - | B72: - | C72: - | D72: =D71 -> - 0%
A73: - | B73: - | C73: - | D73: =BASE!$A$39&" - "&(SUM(E74:BA74)*100)&"%" -> - 0% | E73: I | F73: I | G73: I | H73: I | I73: I | J73: I | K73: I | L73: I | M73: I | N73: I | O73: I | P73: I | Q73: I | R73: I | S73: I | T73: I | U73: I | V73: I | W73: I | X73: I | Y73: I | Z73: I | AA73: I | AB73: I | AC73: I | AD73: I | AE73: I | AF73: I | AG73: I | AH73: I | AI73: I | AJ73: I | AK73: I | AL73: I | AM73: I
A74: - | B74: - | C74: - | D74: =D73 -> - 0%
A75: - | B75: - | C75: - | D75: =BASE!$A$40&" - "&(SUM(E76:BA76)*100)&"%" -> - 0% | E75: I | F75: I | G75: I | H75: I | I75: I | J75: I | K75: I | L75: I | M75: I | N75: I | O75: I | P75: I | Q75: I | R75: I | S75: I | T75: I | U75: I | V75: I | W75: I | X75: I | Y75: I | Z75: I | AA75: I | AB75: I | AC75: I | AD75: I | AE75: I | AF75: I | AG75: I | AH75: I | AI75: I | AJ75: I | AK75: I | AL75: I | AM75: I
A76: - | B76: - | C76: - | D76: =D75 -> - 0%
A77: - | B77: - | C77: - | D77: =BASE!$A$41&" - "&(SUM(E78:BA78)*100)&"%" -> - 0% | E77: I | F77: I | G77: I | H77: I | I77: I | J77: I | K77: I | L77: I | M77: I | N77: I | O77: I | P77: I | Q77: I | R77: I | S77: I | T77: I | U77: I | V77: I | W77: I | X77: I | Y77: I | Z77: I | AA77: I | AB77: I | AC77: I | AD77: I | AE77: I | AF77: I | AG77: I | AH77: I | AI77: I | AJ77: I | AK77: I | AL77: I | AM77: I
A78: - | B78: - | C78: - | D78: =D77 -> - 0%

Sheet SYNTHESE
B1: Site | D1: Temps passé | F1: Manager
B2: =IFERROR(VLOOKUP(LEFT(C2,SEARCH("-",C2)-2),BASE,3,0)," ") ->  | D2: =IF(ISNA(HLOOKUP(A2,TEST!$E$3:$AK$4,2,0)),"-",HLOOKUP(A2,TEST!$E$3:$AK$4,2,0)) -> - | F2: =IFERROR(VLOOKUP(LEFT(C2,SEARCH("-",C2)-2),PERSONNEL,5,0)," ") -> 
A3: TPO - SYNTHESE
A4: Clients | B4: Site | C4: Gestionnaire principal | D4: Temps passé | E4: Gestionnaire secondaire | F4: Manager | G4: Managers2
A5: PERIMETRE 1 | B5: =IFERROR(VLOOKUP(LEFT(C5,SEARCH("-",C5)-2),BASE,3,0)," ") -> Marseille | C5: CCC - 80% | D5: =IF(ISNA(HLOOKUP(A5,TEST!$E$3:$AK$4,2,0)),"-",HLOOKUP(A5,TEST!$E$3:$AK$4,2,0)) -> 0.05 | E5: FFF - 170% | F5: =IFERROR(VLOOKUP(LEFT(C5,SEARCH("-",C5)-2),PERSONNEL,5,0)," ") -> 3 | G5: =F5 -> 3
A6: PERIMETRE 2 | B6: Marseille | C6: CCC - 80% | D6: =IF(ISNA(HLOOKUP(A6,TEST!$E$3:$AK$4,2,0)),"-",HLOOKUP(A6,TEST!$E$3:$AK$4,2,0)) -> 0.15 | E6: FFF - 170% | F6: 3 | G6: =F6 -> 3
A7: PERIMETRE 3 | B7: Marseille | C7: FFF - 170% | D7: =IF(ISNA(HLOOKUP(A7,TEST!$E$3:$AK$4,2,0)),"-",HLOOKUP(A7,TEST!$E$3:$AK$4,2,0)) -> 0.6 | E7: GGG - 95% | F7: 6 | G7: 6
A8: PERIMETRE 4 | B8: Marseille | C8: FFF - 170% | D8: =IF(ISNA(HLOOKUP(A8,TEST!$E$3:$AK$4,2,0)),"-",HLOOKUP(A8,TEST!$E$3:$AK$4,2,0)) -> 0.1 | F8: 6 | G8: 6
A9: PERIMETRE 5 | B9: Marseille | C9: FFF - 170% | D9: =IF(ISNA(HLOOKUP(A9,TEST!$E$3:$AK$4,2,0)),"-",HLOOKUP(A9,TEST!$E$3:$AK$4,2,0)) -> 0.65 | F9: 6 | G9: 6
A10: PERIMETRE 6 | B10: Marseille | C10: FFF - 170% | D10: =IF(ISNA(HLOOKUP(A10,TEST!$E$3:$AK$4,2,0)),"-",HLOOKUP(A10,TEST!$E$3:$AK$4,2,0)) -> 0.3 | F10: 6 | G10: 6
A11: PERIMETRE 7 | B11: Marseille | C11: CCC - 80% | D11: =IF(ISNA(HLOOKUP(A11,TEST!$E$3:$AK$4,2,0)),"-",HLOOKUP(A11,TEST!$E$3:$AK$4,2,0)) -> 0.5 | F11: 3 | G11: 3
A12: PERIMETRE 8 | B12: Marseille | C12: JJJ - 100% | D12: =IF(ISNA(HLOOKUP(A12,TEST!$E$3:$AK$4,2,0)),"-",HLOOKUP(A12,TEST!$E$3:$AK$4,2,0)) -> 1 | E12: LLL - 50% | F12: 4 | G12: 4
A13: PERIMETRE 9 | B13: Marseille | C13: LLL - 50% | D13: =IF(ISNA(HLOOKUP(A13,TEST!$E$3:$AK$4,2,0)),"-",HLOOKUP(A13,TEST!$E$3:$AK$4,2,0)) -> 1 | E13: JJJ - 100% | F13: 6 | G13: 6
A14: PERIMETRE 10 | B14: Marseille | C14: XXX - 80% | D14: =IF(ISNA(HLOOKUP(A14,TEST!$E$3:$AK$4,2,0)),"-",HLOOKUP(A14,TEST!$E$3:$AK$4,2,0)) -> 0.75 | F14: 6 | G14: 6
A15: PERIMETRE 11 | B15: Marseille | C15: XXX - 80% | D15: =IF(ISNA(HLOOKUP(A15,TEST!$E$3:$AK$4,2,0)),"-",HLOOKUP(A15,TEST!$E$3:$AK$4,2,0)) -> 0.15 | F15: 6 | G15: 6
A16: PERIMETRE 12 | B16: Marseille | C16: XXX - 80% | D16: =IF(ISNA(HLOOKUP(A16,TEST!$E$3:$AK$4,2,0)),"-",HLOOKUP(A16,TEST!$E$3:$AK$4,2,0)) -> 0.15 | F16: 6 | G16: 6
A17: PERIMETRE 13 | B17: Marseille | C17: GGG - 95% | D17: =IF(ISNA(HLOOKUP(A17,TEST!$E$3:$AK$4,2,0)),"-",HLOOKUP(A17,TEST!$E$3:$AK$4,2,0)) -> 0.4 | E17: RRR - 90% | F17: 1 | G17: 1
A18: PERIMETRE 14 | B18: Paris | C18: RRR - 90% | D18: =IF(ISNA(HLOOKUP(A18,TEST!$E$3:$AK$4,2,0)),"-",HLOOKUP(A18,TEST!$E$3:$AK$4,2,0)) -> 0.45 | E18: GGG - 95% | F18: 6 | G18: 6
A19: PERIMETRE 15 | B19: Paris | C19: RRR - 90% | D19: =IF(ISNA(HLOOKUP(A19,TEST!$E$3:$AK$4,2,0)),"-",HLOOKUP(A19,TEST!$E$3:$AK$4,2,0)) -> 0.45 | E19: GGG - 95% | F19: 6 | G19: 6
A20: PERIMETRE 16 | B20: Marseille | C20: GGG - 95% | D20: =IF(ISNA(HLOOKUP(A20,TEST!$E$3:$AK$4,2,0)),"-",HLOOKUP(A20,TEST!$E$3:$AK$4,2,0)) -> 0.45 | E20: RRR - 90% | F20: 1 | G20: 1
A21: PERIMETRE 17 | B21: Marseille | C21: SSS - 75% | D21: =IF(ISNA(HLOOKUP(A21,TEST!$E$3:$AK$4,2,0)),"-",HLOOKUP(A21,TEST!$E$3:$AK$4,2,0)) -> 0.05 | E21: RRR - 90% | F21: 1 | G21: 1
A22: PERIMETRE 18 | B22: Paris | C22: PPP - 100% | D22: =IF(ISNA(HLOOKUP(A22,TEST!$E$3:$AK$4,2,0)),"-",HLOOKUP(A22,TEST!$E$3:$AK$4,2,0)) -> 0.75 | E22: UUU - 100% | F22: 4 | G22: 4
A23: PERIMETRE 19 | B23: Marseille | C23: UUU - 100% | D23: =IF(ISNA(HLOOKUP(A23,TEST!$E$3:$AK$4,2,0)),"-",HLOOKUP(A23,TEST!$E$3:$AK$4,2,0)) -> 0.75 | E23: PPP - 100% | F23: 3 | G23: 3
A24: PERIMETRE 20 | B24: Marseille | C24: GGG - 95% | D24: =IF(ISNA(HLOOKUP(A24,TEST!$E$3:$AK$4,2,0)),"-",HLOOKUP(A24,TEST!$E$3:$AK$4,2,0)) -> 0.05 | F24: 1 | G24: 1
A25: PERIMETRE 21 | B25: Marseille | C25: LLL - 50% | D25: =IF(ISNA(HLOOKUP(A25,TEST!$E$3:$AK$4,2,0)),"-",HLOOKUP(A25,TEST!$E$3:$AK$4,2,0)) -> 0.05 | F25: 6 | G25: 6
A26: PERIMETRE 22 | B26: Marseille | C26: DDD - 100% | D26: =IF(ISNA(HLOOKUP(A26,TEST!$E$3:$AK$4,2,0)),"-",HLOOKUP(A26,TEST!$E$3:$AK$4,2,0)) -> 0.7 | E26: RRR - 90% | F26: 4 | G26: 4
A27: PERIMETRE 23 | B27: Marseille | C27: DDD - 100% | D27: =IF(ISNA(HLOOKUP(A27,TEST!$E$3:$AK$4,2,0)),"-",HLOOKUP(A27,TEST!$E$3:$AK$4,2,0)) -> 0.4 | E27: RRR - 90% | F27: 4 | G27: 4
A28: PERIMETRE 24 | B28: Marseille | C28: AAA - 35% | D28: =IF(ISNA(HLOOKUP(A28,TEST!$E$3:$AK$4,2,0)),"-",HLOOKUP(A28,TEST!$E$3:$AK$4,2,0)) -> 0.5 | E28: EEE - 100% | F28: 1 | G28: 1
A29: PERIMETRE 25 | B29: Marseille | C29: SSS - 75% | D29: =IF(ISNA(HLOOKUP(A29,TEST!$E$3:$AK$4,2,0)),"-",HLOOKUP(A29,TEST!$E$3:$AK$4,2,0)) -> 0.5 | E29: EEE - 100% | F29: 1 | G29: 1
A30: PERIMETRE 26 | B30: Paris | C30: EEE - 100% | D30: =IF(ISNA(HLOOKUP(A30,TEST!$E$3:$AK$4,2,0)),"-",HLOOKUP(A30,TEST!$E$3:$AK$4,2,0)) -> 0.4 | E30: SSS - 75% | F30: 5 | G30: 5
A31: PERIMETRE 27 | B31: Marseille | C31: SSS - 75% | D31: =IF(ISNA(HLOOKUP(A31,TEST!$E$3:$AK$4,2,0)),"-",HLOOKUP(A31,TEST!$E$3:$AK$4,2,0)) -> 0.9 | F31: 1 | G31: 1
A32: PERIMETRE 28 | B32: Paris | C32: EEE - 100% | D32: =IF(ISNA(HLOOKUP(A32,TEST!$E$3:$AK$4,2,0)),"-",HLOOKUP(A32,TEST!$E$3:$AK$4,2,0)) -> 1 | F32: 5 | G32: 5
A33: PERIMETRE 29 | B33: Marseille | C33: NNN - 100% | D33: =IF(ISNA(HLOOKUP(A33,TEST!$E$3:$AK$4,2,0)),"-",HLOOKUP(A33,TEST!$E$3:$AK$4,2,0)) -> 1 | E33: VVV - 100% | F33: 2 | G33: 2
A34: PERIMETRE 30 | B34: Paris | C34: VVV - 100% | D34: =IF(ISNA(HLOOKUP(A34,TEST!$E$3:$AK$4,2,0)),"-",HLOOKUP(A34,TEST!$E$3:$AK$4,2,0)) -> 1 | E34: NNN - 100% | F34: 4 | G34: 4
A35: PERIMETRE 31 | B35: Marseille | C35: OOO - 100% | D35: =IF(ISNA(HLOOKUP(A35,TEST!$E$3:$AK$4,2,0)),"-",HLOOKUP(A35,TEST!$E$3:$AK$4,2,0)) -> 1 | E35: KKK - 100% | F35: 3 | G35: 3
A36: PERIMETRE 32 | B36: Paris | C36: KKK - 100% | D36: =IF(ISNA(HLOOKUP(A36,TEST!$E$3:$AK$4,2,0)),"-",HLOOKUP(A36,TEST!$E$3:$AK$4,2,0)) -> 1 | E36: OOO - 100% | F36: 5 | G36: 5
A37: PERIMETRE 33 | B37: Marseille | C37: CCC - 80% | D37: =IF(ISNA(HLOOKUP(A37,TEST!$E$3:$AK$4,2,0)),"-",HLOOKUP(A37,TEST!$E$3:$AK$4,2,0)) -> 0.2 | E37: OOO - 100% | F37: 3 | G37: 3
A38: PERIMETRE 34 | B38: Marseille | C38: QQQ - 60% | D38: =IF(ISNA(HLOOKUP(A38,TEST!$E$3:$AK$4,2,0)),"-",HLOOKUP(A38,TEST!$E$3:$AK$4,2,0)) -> - | E38: ZZZ - 100% | F38: 5 | G38: 5
A39: PERIMETRE 35 | B39: Marseille | C39: ZZZ - 100% | D39: =IF(ISNA(HLOOKUP(A39,TEST!$E$3:$AK$4,2,0)),"-",HLOOKUP(A39,TEST!$E$3:$AK$4,2,0)) -> - | E39: QQQ - 60% | F39: 2 | G39: 2

Sheet TCD
A3: Étiquettes de lignes | B3: Gestionnaire principal | C3: % d'occupation théorique
A4: 3 | B4: CCC - 80% | C4: 0.9
B5: PERIMETRE 1 | C5: 0.05
B6: PERIMETRE 2 | C6: 0.15
B7: PERIMETRE 7 | C7: 0.5
B8: PERIMETRE 33 | C8: 0.2
B9: UUU - 100% | C9: 0.75
B10: PERIMETRE 19 | C10: 0.75
B11: OOO - 100% | C11: 1
B12: PERIMETRE 31 | C12: 1
A13: 6 | B13: FFF - 170% | C13: 1.65
B14: PERIMETRE 3 | C14: 0.6
B15: PERIMETRE 4 | C15: 0.1
B16: PERIMETRE 5 | C16: 0.65
B17: PERIMETRE 6 | C17: 0.3
B18: LLL - 50% | C18: 1.05
B19: PERIMETRE 9 | C19: 1
B20: PERIMETRE 21 | C20: 0.05
B21: XXX - 80% | C21: 1.05
B22: PERIMETRE 10 | C22: 0.75
B23: PERIMETRE 11 | C23: 0.15
B24: PERIMETRE 12 | C24: 0.15
B25: RRR - 90% | C25: 0.9
B26: PERIMETRE 14 | C26: 0.45
B27: PERIMETRE 15 | C27: 0.45
A28: 4 | B28: JJJ - 100% | C28: 1
B29: PERIMETRE 8 | C29: 1
B30: PPP - 100% | C30: 0.75
B31: PERIMETRE 18 | C31: 0.75
B32: DDD - 100% | C32: 1.1
B33: PERIMETRE 22 | C33: 0.7
B34: PERIMETRE 23 | C34: 0.4
B35: VVV - 100% | C35: 1
B36: PERIMETRE 30 | C36: 1
A37: 1 | B37: GGG - 95% | C37: 0.9
B38: PERIMETRE 13 | C38: 0.4
B39: PERIMETRE 16 | C39: 0.45
B40: PERIMETRE 20 | C40: 0.05
B41: SSS - 75% | C41: 1.45
B42: PERIMETRE 17 | C42: 0.05
B43: PERIMETRE 25 | C43: 0.5
B44: PERIMETRE 27 | C44: 0.9
B45: AAA - 35% | C45: 0.5
B46: PERIMETRE 24 | C46: 0.5
A47: 5 | B47: EEE - 100% | C47: 1.4
B48: PERIMETRE 26 | C48: 0.4
B49: PERIMETRE 28 | C49: 1
B50: KKK - 100% | C50: 1
B51: PERIMETRE 32 | C51: 1
B52: QQQ - 60% | C52: 0
B53: PERIMETRE 34 | C53: 0
A54: 2 | B54: NNN - 100% | C54: 1
B55: PERIMETRE 29 | C55: 1
B56: ZZZ - 100% | C56: 0
B57: PERIMETRE 35 | C57: 0
A58: Total général | C58: 17.4

Sheet BASE
A4: Nom | B4: Affectation | C4: Lieu de travail | D4: Poste principal | E4: Manager
A5: AAA | B5: 4-Service | C5: Marseille | D5: AB | E5: 1
A6: BBB | B6: 4-Service | C6: Marseille | D6: AC | E6: 2
A7: CCC | B7: 4-Service | C7: Marseille | D7: AD | E7: 3
A8: DDD | B8: 4-Service | C8: Marseille | D8: AB | E8: 4
A9: EEE | B9: 4-Service | C9: Paris | D9: AC | E9: 5
A10: FFF | B10: 4-Service | C10: Marseille | D10: AD | E10: 6
A11: GGG | B11: 4-Service | C11: Marseille | D11: AB | E11: 1
A12: HHH | B12: 4-Service | C12: Marseille | D12: AC | E12: 2
A13: III | B13: 4-Service | C13: Paris | D13: AD | E13: 3
A14: JJJ | B14: 4-Service | C14: Marseille | D14: AB | E14: 4
A15: KKK | B15: 4-Service | C15: Paris | D15: AC | E15: 5
A16: LLL | B16: 4-Service | C16: Marseille | D16: AD | E16: 6
A17: MMM | B17: 4-Service | C17: Marseille | D17: AB | E17: 1
A18: NNN | B18: 4-Service | C18: Marseille | D18: AC | E18: 2
A19: OOO | B19: 4-Service | C19: Marseille | D19: AD | E19: 3
A20: PPP | B20: 4-Service | C20: Paris | D20: AB | E20: 4
A21: QQQ | B21: 4-Service | C21: Marseille | D21: AC | E21: 5
A22: RRR | B22: 4-Service | C22: Paris | D22: AD | E22: 6
A23: SSS | B23: 4-Service | C23: Marseille | D23: AB | E23: 1
A24: TTT | B24: 4-Service | C24: Marseille | D24: AC | E24: 2
A25: UUU | B25: 4-Service | C25: Marseille | D25: AD | E25: 3
A26: VVV | B26: 4-Service | C26: Paris | D26: AB | E26: 4
A27: WWW | B27: 4-Service | C27: Marseille | D27: AC | E27: 5
A28: XXX | B28: 4-Service | C28: Marseille | D28: AD | E28: 6
A29: YYY | B29: 4-Service | C29: Marseille | D29: AB | E29: 1
A30: ZZZ | B30: 4-Service | C30: Marseille | D30: AC | E30: 2

Sheet LISTE
A1: Sigle | B1: Description | D1: Affectation | F1: Site | H1: Poste principal | J1: Manager
A2: I | B2: Pas formé | D2: 4-Service | F2: Marseille | H2: AB | J2: 1
A3: L | B3: En cours de formation | F3: Paris | H3: AC | J3: 2 | L3: Étiquettes de lignes | M3: % d'occupation théorique
A4: U | B4: Formé | H4: AD | J4: 3 | L4: CCC - 80% | M4: 0.9
A5: O | B5: Formé et peut former | J5: 4 | L5: FFF - 170% | M5: 1.65
J6: 5 | L6: JJJ - 100% | M6: 1
J7: 6 | L7: LLL - 50% | M7: 1.05
L8: XXX - 80% | M8: 1.05
L9: GGG - 95% | M9: 0.9
L10: RRR - 90% | M10: 0.9
L11: SSS - 75% | M11: 1.45
L12: PPP - 100% | M12: 0.75
L13: UUU - 100% | M13: 0.75
L14: DDD - 100% | M14: 1.1
L15: AAA - 35% | M15: 0.5
L16: EEE - 100% | M16: 1.4
L17: NNN - 100% | M17: 1
L18: VVV - 100% | M18: 1
L19: OOO - 100% | M19: 1
L20: KKK - 100% | M20: 1
L21: QQQ - 60% | M21: 0
L22: ZZZ - 100% | M22: 0
L23: Total général | M23: 17.4
